fUSD/lending_fUSD_20240517
["ID","MTS","AMOUNT","RATE_DAILY","PERIOD"]
[327309097,1715979042491,-4895.0,0.00012936,2]
[327309099,1715979042501,-500.0,0.00012937,2]
[327309100,1715979042515,-150.270519,0.0001296,2]
[327309102,1715979042525,-179.365462,0.0001296,2]
[327309103,1715979042535,-168.687442,0.00012968,2]
[327309104,1715979042547,-151.859452,0.00012968,2]
[327309105,1715979042557,-168.687442,0.00012968,2]
[327309106,1715979042566,-150.20476875,0.0001299,2]
[327309107,1715979042575,-500.0,0.00012999,2]
[327309108,1715979042586,-500.0,0.00012999,2]
[327309109,1715979042605,-500.0,0.00012999,2]
[327309110,1715979042617,-500.0,0.00012999,2]
[327309111,1715979042627,-549248.75101933,0.00012999,2]
[327309112,1715979042637,-362.46740158,0.00013,2]
[327309113,1715979042647,-2000.0,0.00013,2]
[327309114,1715979042657,-2000.0,0.00013,2]
[327309115,1715979042667,-500122.62492347,0.00013,2]
[327309116,1715979042678,-1004.96,0.00013,2]
[327309118,1715979042688,-1203.3,0.0001337,15]
[327309120,1715979042698,-253.95,0.00013422,2]
[327309122,1715979042708,-1000.0,0.00013425,2]
[327309123,1715979042718,-1000.0,0.00013689,2]
[327309124,1715979042728,-200.0,0.00013699,2]
[327309125,1715979042738,-2751.0,0.00013699,2]
[327309126,1715979042748,-500.0,0.00013699,2]
[327309127,1715979042760,-10126.6,0.00013699,2]
[327309128,1715979042771,-250.0,0.00013699,2]
[327309129,1715979042781,-200.0,0.00013699,2]
[327309130,1715979042792,-2728.94,0.000137,2]
[327309131,1715979042803,-2728.94,0.000137,2]
[327309132,1715979042813,-2728.94,0.000137,2]
[327309133,1715979042823,-2728.94,0.000137,2]
[327309134,1715979042833,-2728.94,0.000137,2]
[327309135,1715979042843,-157.49,0.00013973,2]
[327309136,1715979042853,-192.91490999,0.00014,2]
[327309138,1715979042862,-2000.0,0.00014,2]
[327309139,1715979042872,-2000.0,0.00014,2]
[327309141,1715979042882,-6935.58672782,0.00014076,2]
[327309143,1715979042891,-2008.51,0.00014079,2]
[327309145,1715979042901,-154.75954022,0.00014083,2]
[327309147,1715979042911,-299.35911654,0.00014087,2]
[327309148,1715979042921,-157.66903106,0.00014096,2]
[327309149,1715979042931,-154.75954022,0.00014101,2]
[327309150,1715979042940,-166.66666666,0.00014103,2]
[327309151,1715979042950,-166.66666667,0.00014118,2]
[327309152,1715979042960,-166.66666666,0.00014123,2]
[327309153,1715979042970,-150.25232363,0.00014141,2]
[327309154,1715979042982,-1292.0803424,0.00014193,2]
[327309155,1715979043002,-299.35911654,0.00014222,2]
[327309156,1715979043026,-299.35911654,0.00014292,2]
[327309157,1715979043051,-193.43539948,0.00014296,2]
[327309158,1715979043073,-6321.4189528,0.00014304,2]
[327309159,1715979043098,-25113.46799601,0.00014304,2]
[327309160,1715979043123,-1004.96,0.00014315,2]
[327309161,1715979043149,-171.55391824,0.00014365,2]
[327309162,1715979043164,-193.43539948,0.00014375,2]
[327309163,1715979043175,-163.92345761,0.00014398,2]
[327309164,1715979043184,-166.66666668,0.000144,2]
[327309165,1715979043194,-166.66666666,0.00014411,2]
[327309166,1715979043203,-150.63567191,0.00014424,2]
[327309167,1715979043213,-300.0,0.00014442,2]
[327309168,1715979043222,-3872.645,0.00014442,2]
[327309169,1715979043233,-150.63567191,0.00014472,2]
[327309170,1715979043243,-729.18623904,0.0001449,2]
[327309171,1715979043253,-171.55391824,0.00014494,2]
[327309172,1715979043262,-500.0,0.00014507,2]
[327309173,1715979043272,-166.83499667,0.00014508,2]
[327309174,1715979043281,-2081.451,0.00014508,2]
[327309175,1715979043291,-1393.818,0.00014508,2]
[327309176,1715979043301,-970.257,0.00014508,2]
[327309177,1715979043311,-306.521,0.00014508,2]
[327309178,1715979043321,-316.038,0.00014508,2]
[327309179,1715979043331,-439.0,0.00014508,2]
[327309180,1715979043341,-444.0,0.00014508,2]
[327309181,1715979043351,-363.654,0.00014508,2]
[327309182,1715979043361,-2393.0,0.00014508,2]
[327309183,1715979043372,-1647.0,0.00014508,2]
[327309184,1715979043382,-215.0,0.00014508,2]
[327309185,1715979043392,-3106.267,0.00014508,2]
[327309186,1715979043402,-1137.0,0.00014508,2]
[327309187,1715979043412,-5914.0,0.00014508,2]
[327309188,1715979043421,-151.159,0.00014508,2]
[327309189,1715979043431,-299.747,0.00014508,2]
[327309190,1715979043441,-425.0,0.00014508,2]
[327309191,1715979043452,-5753.0,0.00014508,2]
[327309192,1715979043462,-37858.0,0.00014508,2]
[327309193,1715979043471,-1059.0,0.00014508,2]
[327309194,1715979043481,-627.0,0.0001452,2]
[327309195,1715979043491,-1004.88727076,0.00014588,2]
[327309196,1715979043501,-166.66666666,0.00014603,2]
[327309197,1715979043516,-729.18623904,0.00014623,2]
[327309198,1715979043526,-200.0,0.00014647,2]
[327309199,1715979043536,-171.55391824,0.00014667,2]
[327309200,1715979043547,-627.0,0.00014669,2]
[327309201,1715979043559,-154.51679898,0.00014674,2]
[327309202,1715979043569,-154.75954022,0.00014675,2]
[327309203,1715979043578,-158.96537893,0.00014686,2]
[327309204,1715979043590,-150.63567191,0.00014709,2]
[327309205,1715979043600,-339.22,0.0001472,2]
[327309206,1715979043610,-171.55391824,0.00014723,2]
[327309207,1715979043619,-1292.0803424,0.00014799,2]
[327309208,1715979043629,-541.48648052,0.00014811,2]
[327309209,1715979043639,-627.0,0.00014819,2]
[327309210,1715979043649,-193.43539948,0.00014827,2]
[327309211,1715979043659,-729.18623904,0.0001483,2]
[327309212,1715979043669,-1292.0803424,0.00014857,2]
[327309213,1715979043679,-171.55391824,0.00014857,2]
[327309214,1715979043688,-1292.0803424,0.00014928,2]
[327309215,1715979043698,-655.26958703,0.00014969,2]
[327309216,1715979043708,-1061.64177814,0.00014969,2]
[327309217,1715979043717,-627.0,0.00014969,2]
[327309218,1715979043727,-1357.38021769,0.00014969,2]
[327309219,1715979043736,-299.35911654,0.00014999,2]
[327309220,1715979043746,-257.56180618,0.00015,2]
[327309221,1715979043756,-200.0,0.00015,2]
[327309222,1715979043769,-1187.56021273,0.00015,2]
[327309223,1715979043779,-155.51399033,0.00015,2]
[327309224,1715979043789,-8090.5865735,0.00015,2]
[327309225,1715979043799,-1022.0,0.00015,2]
[327309226,1715979043809,-2000.0,0.00015,2]
[327309227,1715979043819,-1833.0,0.00015,2]
[327309228,1715979043829,-485.0,0.00015,2]
[327309229,1715979043839,-24882.50974046,0.00015,2]
[327309230,1715979043848,-4098.2837804,0.00015,2]
[327309231,1715979043880,-9239.7162196,0.00015,2]
[327309232,1715979043889,-150.25232363,0.00015002,2]
[327309233,1715979043900,-299.35911654,0.00015006,2]
[327309234,1715979043911,-729.18623904,0.0001505,2]
[327309235,1715979043921,-150.25232363,0.00015058,2]
[327309236,1715979043940,-300.0,0.00015068,2]
[327309237,1715979043953,-152.84858728,0.00015086,2]
[327309238,1715979043967,-154.51679898,0.00015103,2]
[327309239,1715979043981,-152.84858728,0.00015108,2]
[327309240,1715979043995,-627.0,0.00015118,2]
[327309241,1715979044007,-1292.0803424,0.00015136,2]
[327309242,1715979044018,-729.18623904,0.0001518,2]
[327309243,1715979044030,-150.25232363,0.000152,2]
[327309244,1715979044043,-154.75954022,0.00015211,2]
[327309245,1715979044055,-156.49084933,0.00015218,2]
[327309246,1715979044067,-299.35911654,0.00015243,2]
[327309247,1715979044079,-541.48648052,0.00015265,2]
[327309248,1715979044092,-627.0,0.00015268,2]
[327309249,1715979044105,-193.43539948,0.00015278,2]
[327309250,1715979044116,-150.63567191,0.00015297,2]
[327309251,1715979044128,-150.63567191,0.00015328,2]
[327309252,1715979044142,-171.55391824,0.00015352,2]
[327309253,1715979044153,-8349.08323413,0.00015403,2]
[327309254,1715979044167,-627.0,0.00015418,2]
[327309255,1715979044181,-299.35911654,0.0001542,2]
[327309256,1715979044193,-1292.0803424,0.00015455,2]
[327309257,1715979044204,-541.48648052,0.00015496,2]
[327309258,1715979044219,-729.18623904,0.000155,2]
[327309259,1715979044231,-150.0,0.000155,2]
[327309260,1715979044244,-166.66666666,0.00015502,2]
[327309261,1715979044256,-193.43539948,0.00015504,2]
[327309262,1715979044268,-541.48648052,0.00015589,2]
[327309263,1715979044280,-157.66903106,0.00015601,2]
[327309264,1715979044293,-150.63567191,0.00015616,2]
[327309265,1715979044303,-1004.96,0.0001563,2]
[327309266,1715979044312,-171.55391824,0.00015632,2]
[327309267,1715979044324,-1292.0803424,0.00015638,2]
[327309268,1715979044337,-208.0,0.0001564,2]
[327309269,1715979044348,-166.66666666,0.0001571,2]
[327309270,1715979044360,-150.25232363,0.00015721,2]
[327309271,1715979044373,-523.76,0.00015743,2]
[327309272,1715979044385,-152.84858728,0.00015751,2]
[327309273,1715979044397,-150.25232363,0.00015762,2]
[327309274,1715979044408,-169.37772415,0.00015791,2]
[327309275,1715979044421,-171.55391824,0.000158,2]
[327309276,1715979044433,-167.0,0.00015831,2]
[327309277,1715979044447,-6935.58672782,0.00015834,2]
[327309278,1715979044459,-153.90576894,0.00015871,2]
[327309279,1715979044470,-2000.0,0.00016,2]
[327309280,1715979044480,-150.0,0.00016,2]
[327309281,1715979044490,-541.48648052,0.00016048,2]
[327309282,1715979044501,-193.43539948,0.00016095,2]
[327309283,1715979044517,-9999.99,0.00016116,2]
[327309284,1715979044528,-1111.09966964,0.0001612,2]
[327309285,1715979044542,-171.55391824,0.00016125,2]
[327309286,1715979044554,-154.75954022,0.00016128,2]
[327309287,1715979044566,-729.18623904,0.00016136,2]
[327309288,1715979044578,-369.29401334,0.00016139,2]
[327309289,1715979044592,-729.18623904,0.00016188,2]
[327309290,1715979044603,-171.55391824,0.00016194,2]
[327309291,1715979044615,-208.0,0.000162,2]
[327309292,1715979044627,-6321.4189528,0.00016227,2]
[327309293,1715979044641,-25113.46799601,0.00016227,2]
[327309294,1715979044653,-150.25232363,0.00016247,2]
[327309295,1715979044664,-156.49084933,0.00016248,2]
[327309296,1715979044675,-171.55391824,0.00016273,2]
[327309297,1715979044685,-1000.0,0.00016281,2]
[327309298,1715979044695,-167.0,0.00016354,2]
[327309299,1715979044706,-1203.3,0.00016359,15]
[327309300,1715979044719,-174.14011094,0.0001636,2]
[327309301,1715979044731,-158.50296534,0.00016366,2]
[327309302,1715979044742,-200.0,0.00016398,2]
[327309303,1715979044759,-156.84401569,0.00016417,2]
[327309304,1715979044770,-500.0,0.00016438,2]
[327309305,1715979044782,-500.0,0.00016438,2]
[327309306,1715979044796,-500.0,0.00016438,2]
[327309307,1715979044807,-500.0,0.00016438,2]
[327309308,1715979044819,-500.0,0.00016438,2]
[327309309,1715979044830,-500.0,0.00016438,2]
[327309310,1715979044842,-500.0,0.00016438,2]
[327309311,1715979044853,-500.0,0.00016438,2]
[327309312,1715979044864,-500.0,0.00016438,2]
[327309313,1715979044875,-500.0,0.00016438,2]
[327309314,1715979044888,-500.0,0.00016438,2]
[327309315,1715979044899,-500.0,0.00016438,2]
[327309316,1715979044911,-188.3386856,0.00016438,2]
[327309317,1715979044922,-151.0,0.00016438,2]
[327309318,1715979044933,-200.0,0.00016438,7]
[327309319,1715979044946,-300.0,0.00016438,2]
[327309320,1715979044958,-158.50296534,0.00016482,2]
[327309321,1715979044969,-2354.58285139,0.000165,2]
[327309322,1715979044981,-150.0,0.000165,2]
[327309323,1715979044992,-411.8111725,0.00016502,2]
[327309324,1715979045003,-500.0,0.00016502,2]
[327309325,1715979045014,-500.0,0.00016502,2]
[327309326,1715979045025,-541.48648052,0.00016509,2]
[327309327,1715979045038,-166.66666666,0.00016522,2]
[327309328,1715979045049,-156.49084933,0.00016552,2]
[327309329,1715979045061,-154.51679898,0.0001657,2]
[327309330,1715979045073,-252.07,0.00016577,2]
[327309331,1715979045084,-150.25232363,0.0001659,2]
[327309332,1715979045096,-166.66666666,0.000166,2]
[327309333,1715979045107,-299.35911654,0.00016605,2]
[327309334,1715979045118,-500.0,0.0001661,2]
[327309335,1715979045130,-1292.0803424,0.00016612,2]
[327309336,1715979045142,-500.0,0.00016619,2]
[327309337,1715979045153,-500.0,0.00016627,2]
[327309338,1715979045164,-500.0,0.00016636,2]
[327309339,1715979045176,-500.0,0.00016645,2]
[327309340,1715979045186,-500.0,0.00016654,2]
[327309341,1715979045198,-500.0,0.00016663,2]
[327309342,1715979045208,-541.48648052,0.00016666,2]
[327309344,1715979045219,-500.0,0.00016671,2]
[327309346,1715979045231,-500.0,0.0001668,2]
[327309347,1715979045242,-500.0,0.00016689,2]
[327309348,1715979045252,-299.35911654,0.00016689,2]
[327309349,1715979045264,-500.0,0.00016698,2]
[327309350,1715979045275,-500.0,0.00016707,2]
[327309351,1715979045286,-179.61,0.00016712,2]
[327309352,1715979045296,-500.0,0.00016715,2]
[327309354,1715979045307,-500.0,0.00016724,2]
[327309356,1715979045318,-541.48648052,0.00016747,2]
[327309357,1715979045329,-208.0,0.0001675,2]
[327309358,1715979045340,-200.0,0.000168,2]
[327309359,1715979045351,-299.35911654,0.00016829,2]
[327309360,1715979045362,-299.35911654,0.00016831,2]
[327309361,1715979045373,-167.0,0.00016876,2]
[327309362,1715979045384,-152.84858728,0.00016886,2]
[327309364,1715979045395,-339.22,0.00016887,2]
[327309366,1715979045407,-354.97275212,0.000169,2]
[327309368,1715979045419,-729.18623904,0.00016918,2]
[327309370,1715979045430,-1004.96,0.00016945,2]
[327309371,1715979045441,-167.84518346,0.00016946,2]
[327309372,1715979045452,-541.48648052,0.00016978,2]
[327309373,1715979045463,-155.0,0.00017,2]
[327309374,1715979045474,-2000.0,0.00017,2]
[327309375,1715979045485,-1004.96,0.00017,2]
[327309376,1715979045496,-317.94,0.00017,2]
[327309377,1715979045509,-150.0,0.00017,2]
[327309378,1715979045520,-193.43539948,0.00017003,2]
[327309379,1715979045531,-158.96537893,0.0001702,2]
[327309380,1715979045542,-541.48648052,0.00017029,2]
[327309381,1715979045555,-1292.0803424,0.00017045,2]
[327309382,1715979045566,-541.48648052,0.00017064,2]
[327309383,1715979045576,-216.0,0.0001716,2]
[327309384,1715979045589,-200.0,0.0001716,2]
[327309385,1715979045600,-729.18623904,0.00017173,2]
[327309386,1715979045612,-150.63567191,0.00017211,2]
[327309387,1715979045622,-156.49084933,0.00017277,2]
[327309388,1715979045633,-166.66666666,0.00017285,2]
[327309389,1715979045644,-729.18623904,0.00017286,2]
[327309390,1715979045655,-541.48648052,0.00017296,2]
[327309391,1715979045666,-208.0,0.000173,2]
[327309392,1715979045676,-162.0,0.00017318,2]
[327309393,1715979045687,-541.48648052,0.00017327,2]
[327309394,1715979045698,-541.48648052,0.00017351,2]
[327309395,1715979045710,-193.43539948,0.00017393,2]
[327309396,1715979045722,-150.25232363,0.00017397,2]
[327309397,1715979045732,-167.0,0.00017399,2]
[327309398,1715979045742,-156.49084933,0.00017403,2]
[327309399,1715979045751,-299.35911654,0.00017403,2]
[327309400,1715979045761,-157.66903106,0.00017404,2]
[327309401,1715979045771,-541.48648052,0.00017413,2]
[327309402,1715979045780,-729.18623904,0.00017448,2]
[327309403,1715979045790,-153.90576894,0.00017457,2]
[327309404,1715979045800,-193.43539948,0.00017472,2]
[327309405,1715979045809,-154.75954022,0.00017495,2]
[327309406,1715979045818,-150.0,0.000175,2]
[327309407,1715979045827,-439.0,0.00017508,2]
[327309408,1715979045837,-305.939,0.00017508,2]
[327309409,1715979045846,-924.667,0.00017508,2]
[327309410,1715979045855,-3455.882,0.00017508,2]
[327309411,1715979045864,-216.0,0.0001751,2]
[327309412,1715979045874,-200.0,0.0001751,2]
[327309413,1715979045883,-154.75954022,0.00017532,2]
[327309414,1715979045893,-166.66666666,0.00017543,2]
[327309415,1715979045902,-150.25232363,0.00017569,2]
[327309416,1715979045911,-152.84858728,0.00017579,2]
[327309417,1715979045920,-6935.58672782,0.00017592,2]
[327309418,1715979045929,-500.0,0.00017598,2]
[327309419,1715979045938,-500.0,0.00017598,2]
[327309420,1715979045948,-150.63567191,0.00017598,2]
[327309421,1715979045957,-729.18623904,0.00017631,2]
[327309422,1715979045967,-150.63567191,0.0001767,2]
[327309423,1715979045976,-154.51679898,0.00017672,2]
[327309424,1715979045986,-193.43539948,0.00017698,2]
[327309425,1715979045995,-1292.0803424,0.0001773,2]
[327309426,1715979046004,-1292.0803424,0.00017744,2]
[327309427,1715979046013,-150.25232363,0.00017746,2]
[327309428,1715979046023,-541.48648052,0.00017755,2]
[327309429,1715979046032,-299.35911654,0.00017765,2]
[327309435,1715979046325,-729.18623904,0.00017781,2]
[327309436,1715979046348,-150.25232363,0.00017809,2]
[327309437,1715979046368,-299.35911654,0.00017812,2]
[327309438,1715979046379,-1292.0803424,0.00017814,2]
[327309439,1715979046388,-208.0,0.0001785,2]
[327309440,1715979046398,-1292.0803424,0.00017864,2]
[327309441,1715979046407,-216.0,0.0001787,2]
[327309442,1715979046416,-200.0,0.0001787,2]
[327309443,1715979046425,-8349.08323413,0.00017875,2]
[327309444,1715979046434,-150.25232363,0.00017891,2]
[327309445,1715979046442,-170.46182496,0.000179,2]
[327309446,1715979046452,-167.0,0.00017921,2]
[327309447,1715979046462,-1292.0803424,0.00017935,2]
[327309448,1715979046471,-1292.0803424,0.00017938,2]
[327309449,1715979046480,-729.18623904,0.00017973,2]
[327309450,1715979046490,-224.0,0.00017984,2]
[327309451,1715979046499,-217.0,0.00017984,2]
[327309452,1715979046512,-217.0,0.00017984,2]
[327309453,1715979046521,-222.0,0.00017984,2]
[327309454,1715979046531,-222.0,0.00017984,2]
[327309455,1715979046541,-222.0,0.00017984,2]
[327309456,1715979046551,-222.0,0.00017984,2]
[327309457,1715979046561,-216.0,0.00017984,2]
[327309458,1715979046570,-216.0,0.00017984,2]
[327309459,1715979046579,-216.0,0.00017984,2]
[327309460,1715979046590,-216.0,0.00017984,2]
[327309461,1715979046599,-216.0,0.00017984,2]
[327309462,1715979046608,-216.0,0.00017984,2]
[327309463,1715979046618,-200.0,0.00017984,2]
[327309464,1715979046627,-200.0,0.00017984,2]
[327309465,1715979046636,-200.0,0.00017984,2]
[327309466,1715979046645,-200.0,0.00017984,2]
[327309467,1715979046654,-200.0,0.00017984,2]
[327309468,1715979046663,-200.0,0.00017984,2]
[327309469,1715979046673,-208.0,0.00017984,2]
[327309470,1715979046683,-208.0,0.00017984,2]
[327309471,1715979046692,-208.0,0.00017984,2]
[327309472,1715979046701,-208.0,0.00017984,2]
[327309473,1715979046709,-208.0,0.00017984,2]
[327309474,1715979046718,-208.0,0.00017984,2]
[327309475,1715979046727,-208.0,0.00017984,2]
[327309476,1715979046736,-208.0,0.00017984,2]
[327309477,1715979046745,-208.0,0.00017984,2]
[327309478,1715979046754,-208.0,0.00017984,2]
[327309479,1715979046763,-208.0,0.00017984,2]
[327309480,1715979046772,-299.35911654,0.00017989,2]
[327309481,1715979046781,-193.43539948,0.00017993,2]
[327309482,1715979046790,-474.58,0.00017999,2]
[327309483,1715979046800,-7271.05388781,0.00018,2]
[327309484,1715979046809,-250.00245932,0.00018,2]
[327309485,1715979046818,-2000.0,0.00018,2]
[327309486,1715979046827,-1554.87708521,0.00018,2]
[327309487,1715979046837,-1108.60351584,0.00018,2]
[327309488,1715979046845,-150.0,0.00018,2]
[327309489,1715979046855,-541.48648052,0.00018006,2]
[327309490,1715979046864,-541.48648052,0.00018057,2]
[327309491,1715979046873,-299.35911654,0.00018063,2]
[327309492,1715979046883,-299.35911654,0.0001809,2]
[327309493,1715979046891,-1658.39397925,0.000181,2]
[327309494,1715979046902,-168.02744571,0.00018124,2]
[327309495,1715979046911,-299.35911654,0.00018133,2]
[327309496,1715979046920,-299.35911654,0.00018141,2]
[327309497,1715979046929,-200.0,0.00018148,2]
[327309498,1715979046938,-1000.0,0.00018148,2]
[327309499,1715979046946,-500.0,0.00018148,2]
[327309500,1715979046956,-200.0,0.00018148,2]
[327309501,1715979046965,-6321.4189528,0.0001815,2]
[327309502,1715979046974,-25113.46799601,0.0001815,2]
[327309503,1715979046983,-171.55391824,0.00018189,2]
[327309504,1715979046993,-152.84858728,0.00018219,2]
[327309505,1715979047002,-150.0337778,0.00018251,2]
[327309506,1715979047011,-171.55391824,0.00018258,2]
[327309507,1715979047021,-1004.96,0.0001826,2]
[327309508,1715979047031,-1292.0803424,0.000183,2]
[327309509,1715979047040,-317.94,0.000183,2]
[327309510,1715979047050,-171.55391824,0.00018302,2]
[327309511,1715979047060,-1004.96,0.00018315,2]
[327309512,1715979047069,-193.43539948,0.00018425,2]
[327309513,1715979047078,-167.0,0.00018444,2]
[327309514,1715979047087,-177.88100904,0.00018446,2]
[327309515,1715979047097,-171.55391824,0.00018455,2]
[327309516,1715979047106,-150.0,0.000185,2]
[327309517,1715979047115,-19999.99,0.00018533,2]
[327309518,1715979047124,-4417.99,0.00018533,2]
[327309519,1715979047133,-1095.88,0.00018533,2]
[327309520,1715979047142,-150.03377781,0.00018569,2]
[327309521,1715979047151,-193.43539948,0.00018582,2]
[327309522,1715979047161,-1292.0803424,0.00018593,2]
[327309523,1715979047172,-193.43539948,0.00018649,2]
[327309524,1715979047181,-252.07,0.00018649,2]
[327309525,1715979047190,-177.88100904,0.0001867,2]
[327309526,1715979047199,-168.24161346,0.00018686,2]
[327309527,1715979047209,-500.0,0.00018694,2]
[327309528,1715979047218,-500.0,0.00018694,2]
[327309529,1715979047227,-156.49084933,0.00018696,2]
[327309530,1715979047238,-153.90576894,0.0001874,2]
[327309531,1715979047247,-541.48648052,0.00018782,2]
[327309532,1715979047257,-154.51679898,0.0001879,2]
[327309533,1715979047266,-150.25232363,0.00018793,2]
[327309534,1715979047275,-541.48648052,0.00018798,2]
[327309535,1715979047284,-1000.0,0.000188,2]
[327309536,1715979047293,-223.0,0.000188,2]
[327309537,1715979047303,-353.0,0.000188,2]
[327309538,1715979047313,-171.55391824,0.00018812,2]
[327309539,1715979047322,-157.33741901,0.00018826,2]
[327309540,1715979047333,-22937.48034047,0.00018841,2]
[327309541,1715979047342,-299.35911654,0.00018865,2]
[327309542,1715979047352,-154.51679898,0.00018902,2]
[327309543,1715979047362,-299.35911654,0.00018913,2]
[327309544,1715979047372,-193.43539948,0.0001894,2]
[327309545,1715979047381,-152.84858728,0.00018948,2]
[327309546,1715979047392,-155.0,0.00019,2]
[327309547,1715979047401,-44958.50268548,0.00019,5]
[327309548,1715979047411,-992.5,0.00019,2]
[327309549,1715979047420,-1033.88207033,0.00019,2]
[327309550,1715979047431,-150.0,0.00019,2]
[327309551,1715979047442,-339.22,0.00019054,2]
[327309552,1715979047452,-193.43539948,0.0001906,2]
[327309553,1715979047462,-729.18623904,0.00019065,2]
[327309554,1715979047473,-541.48648052,0.00019071,2]
[327309555,1715979047483,-150.25232363,0.00019075,2]
[327309556,1715979047494,-179.89314112,0.00019092,2]
[327309557,1715979047504,-150.25232363,0.00019093,2]
[327309558,1715979047518,-729.18623904,0.0001913,2]
[327309559,1715979047530,-1999.0,0.0001915,3]
[327309560,1715979047540,-1999.0,0.0001915,3]
[327309561,1715979047554,-1999.0,0.0001915,3]
[327309562,1715979047563,-1999.0,0.0001915,3]
[327309563,1715979047572,-1999.0,0.0001915,3]
[327309564,1715979047582,-1999.0,0.0001915,3]
[327309565,1715979047595,-1999.0,0.0001915,3]
[327309566,1715979047606,-1999.0,0.0001915,3]
[327309567,1715979047616,-1999.0,0.0001915,3]
[327309568,1715979047626,-1999.0,0.0001915,3]
[327309569,1715979047637,-1999.0,0.0001915,3]
[327309570,1715979047646,-1239.89793563,0.0001915,3]
[327309571,1715979047656,-500.0,0.00019178,2]
[327309572,1715979047667,-500.0,0.00019178,2]
[327309573,1715979047677,-500.0,0.00019178,2]
[327309574,1715979047686,-500.0,0.00019178,2]
[327309575,1715979047695,-500.0,0.00019178,2]
[327309576,1715979047705,-500.0,0.00019178,2]
[327309577,1715979047714,-219.3285552,0.00019178,2]
[327309578,1715979047723,-500.0,0.00019178,2]
[327309579,1715979047733,-469.76132109,0.00019178,2]
[327309580,1715979047742,-500.0,0.00019178,2]
[327309581,1715979047752,-500.0,0.00019178,2]
[327309582,1715979047762,-500.0,0.00019178,2]
[327309583,1715979047772,-500.0,0.00019178,2]
[327309584,1715979047781,-500.0,0.00019178,2]
[327309585,1715979047790,-500.0,0.00019178,2]
[327309586,1715979047800,-500.0,0.00019178,2]
[327309587,1715979047810,-500.0,0.00019178,2]
[327309588,1715979047819,-500.0,0.00019178,2]
[327309589,1715979047828,-500.0,0.00019178,2]
[327309590,1715979047837,-500.0,0.00019178,2]
[327309591,1715979047846,-500.0,0.00019178,2]
[327309592,1715979047856,-500.0,0.00019178,2]
[327309593,1715979047865,-500.0,0.00019178,2]
[327309594,1715979047874,-500.0,0.00019178,2]
[327309595,1715979047883,-500.0,0.00019178,2]
[327309596,1715979047892,-500.0,0.00019178,2]
[327309597,1715979047901,-500.0,0.00019178,2]
[327309598,1715979047910,-500.0,0.00019178,2]
[327309599,1715979047919,-500.0,0.00019178,2]
[327309600,1715979047928,-500.0,0.00019178,2]
[327309601,1715979047937,-500.0,0.00019178,2]
[327309602,1715979047946,-500.0,0.00019178,2]
[327309603,1715979047955,-500.0,0.00019178,2]
[327309604,1715979047964,-500.0,0.00019178,2]
[327309605,1715979047973,-500.0,0.00019178,2]
[327309606,1715979047982,-500.0,0.00019178,2]
[327309607,1715979047991,-500.0,0.00019178,2]
[327309608,1715979048000,-500.0,0.00019178,2]
[327309609,1715979048009,-500.0,0.00019178,2]
[327309610,1715979048018,-500.0,0.00019178,2]
[327309611,1715979048027,-500.0,0.00019178,2]
[327309612,1715979048036,-500.0,0.00019178,2]
[327309613,1715979048046,-500.0,0.00019178,2]
[327309614,1715979048055,-500.0,0.00019178,2]
[327309615,1715979048064,-500.0,0.00019178,2]
[327309616,1715979048073,-500.0,0.00019178,2]
[327309617,1715979048082,-500.0,0.00019178,2]
[327309618,1715979048091,-535.07157156,0.00019178,2]
[327309619,1715979048100,-500.0,0.00019178,2]